bitfinex-derivatives/quotes_BTCF0:USTF0_20250315
["timestamp","ask_amount","ask_price","bid_price","bid_amount"]
[1742022449715,0.60042306,84090.0,84089.0,0.22062565]
[1742022449894,0.60042306,84090.0,84089.0,0.50062565]
[1742022450091,0.60042306,84090.0,84089.0,0.53382565]
[1742022450390,0.60042306,84090.0,84089.0,0.25382565]
[1742022451000,0.60042306,84090.0,84089.0,0.53382565]
[1742022452504,0.60042306,84090.0,84089.0,0.25382565]
[1742022452704,0.60042306,84090.0,84089.0,0.51382565]
[1742022453103,0.60042306,84090.0,84089.0,0.25382565]
[1742022453303,0.60042306,84090.0,84089.0,0.50382565]
[1742022453806,0.60042306,84090.0,84089.0,0.25382565]
[1742022454007,0.60042306,84090.0,84089.0,0.52382565]
[1742022454904,0.60042306,84090.0,84089.0,0.25382565]
[1742022455294,0.60042306,84090.0,84089.0,0.68382565]
[1742022455605,0.60042306,84090.0,84089.0,0.40382565]
[1742022456797,0.60042306,84090.0,84089.0,0.95382565]
[1742022456995,0.60042306,84090.0,84089.0,0.65382565]
[1742022457195,0.60042306,84090.0,84089.0,0.40382565]
[1742022457506,0.60042306,84090.0,84089.0,0.65382565]
[1742022458395,0.60042306,84090.0,84089.0,0.66382565]
[1742022458607,0.60042306,84090.0,84089.0,0.69622565]
[1742022459307,0.60042306,84090.0,84089.0,0.68622565]
[1742022459700,0.60042306,84090.0,84089.0,0.95622565]
[1742022459901,0.60042306,84090.0,84089.0,0.69622565]
[1742022460304,0.60042306,84090.0,84089.0,0.43622565]
[1742022461011,0.60042306,84090.0,84089.0,0.69622565]
[1742022461318,0.60042306,84090.0,84089.0,0.68622565]
[1742022461506,0.60042306,84090.0,84089.0,0.43622565]
[1742022462604,0.60042306,84090.0,84089.0,0.29622565]
[1742022463517,0.60042306,84090.0,84089.0,0.26382565]
[1742022463718,0.60042306,84090.0,84089.0,0.74382565]
[1742022463918,0.60042306,84090.0,84089.0,0.26382565]
[1742022464117,0.60042306,84090.0,84089.0,0.29472565]
[1742022465017,0.60042306,84090.0,84089.0,0.52472565]
[1742022465219,0.60042306,84090.0,84089.0,0.29472565]
[1742022465511,0.60042306,84090.0,84089.0,0.55472565]
[1742022465916,0.60042306,84090.0,84089.0,0.24170645]
[1742022466708,0.60042306,84090.0,84089.0,0.51170645]
[1742022467220,0.60042306,84090.0,84089.0,0.24170645]
[1742022467713,0.60042306,84090.0,84089.0,0.63062565]
[1742022468317,0.60042306,84090.0,84089.0,0.86062565]
[1742022468517,0.60042306,84090.0,84089.0,0.63062565]
[1742022468715,0.60042306,84090.0,84089.0,0.36062565]
[1742022468915,0.60042306,84090.0,84089.0,0.84062565]
[1742022469111,0.60042306,84090.0,84089.0,0.93332565]
[1742022469425,0.60042306,84090.0,84089.0,0.92332565]
[1742022469613,0.60042306,84090.0,84089.0,0.93332565]
[1742022471913,0.60042306,84090.0,84089.0,0.89332565]
[1742022472516,0.60042306,84090.0,84089.0,0.68332565]
[1742022472913,0.60042306,84090.0,84089.0,0.42332565]
[1742022473114,0.60042306,84090.0,84089.0,0.70332565]
[1742022473314,0.60042306,84090.0,84089.0,0.42332565]
[1742022474027,0.60042306,84090.0,84089.0,0.27180645]
[1742022474211,0.60042306,84090.0,84089.0,0.28180645]
[1742022474717,0.60042306,84090.0,84089.0,0.04180645]
[1742022474916,0.611462,84090.0,84089.0,0.15180645]
[1742022475216,0.611462,84090.0,84089.0,0.32180645]
[1742022475416,0.611462,84090.0,84089.0,0.01170645]
[1742022475624,0.611462,84090.0,84087.0,0.1189212]
[1742022475625,0.1783843,84088.0,84087.0,0.1189212]
[1742022475821,0.1783843,84088.0,84087.0,0.3789212]
[1742022475822,0.18942324,84088.0,84087.0,0.3789212]
[1742022476321,0.22082324,84088.0,84087.0,0.3789212]
[1742022476621,0.25524024,84088.0,84087.0,0.4107212]
[1742022476925,0.25524024,84088.0,84087.0,0.9607212]
[1742022477120,0.25524024,84088.0,84087.0,0.4107212]
[1742022477919,0.25524024,84088.0,84087.0,0.1507212]
[1742022478313,0.25624024,84088.0,84087.0,0.4107212]
[1742022478513,0.25724024,84088.0,84087.0,0.1507212]
[1742022478823,0.25724024,84088.0,84087.0,0.42292372]
[1742022479423,0.25731777,84088.0,84087.0,0.54292372]
[1742022479618,0.25731777,84088.0,84087.0,0.43292372]
[1742022479813,0.25731777,84088.0,84087.0,0.53292372]
[1742022480016,0.25731777,84088.0,84087.0,0.43292372]
[1742022480725,0.25731777,84088.0,84087.0,0.0318]
[1742022480923,0.27574,84088.0,84087.0,0.24219479]
[1742022481120,0.27574,84088.0,84087.0,0.218922]
[1742022481425,0.33354526,84088.0,84087.0,0.378922]
[1742022481633,0.33354526,84088.0,84087.0,0.218922]
[1742022481925,0.31512303,84088.0,84087.0,0.448922]
[1742022482118,0.31512303,84088.0,84087.0,0.218922]
[1742022482630,0.31512303,84088.0,84087.0,0.478922]
[1742022482816,0.31512303,84088.0,84087.0,0.718922]
[1742022483431,0.31512303,84088.0,84087.0,0.758922]
[1742022483631,0.31512303,84088.0,84087.0,0.72082956]
[1742022483826,0.31512303,84088.0,84087.0,0.47082956]
[1742022484017,0.31512303,84088.0,84087.0,0.72292956]
[1742022484221,0.31512303,84088.0,84087.0,0.61292956]
[1742022484531,0.31512303,84088.0,84087.0,0.50292956]
[1742022484532,0.31412303,84088.0,84087.0,0.50292956]
[1742022484832,0.19619963,84088.0,84087.0,0.52292956]
[1742022485021,0.19619963,84088.0,84087.0,0.54292956]
[1742022485224,0.19619963,84088.0,84087.0,0.26292956]
[1742022485427,0.19619963,84088.0,84087.0,0.54292956]
[1742022485923,0.18508316,84088.0,84087.0,0.50292956]
[1742022486124,0.18508316,84088.0,84087.0,0.24292956]
[1742022487024,0.19596908,84088.0,84087.0,0.24292956]
[1742022487227,0.13650818,84088.0,84087.0,0.50292956]
[1742022487430,0.25542878,84088.0,84087.0,0.24292956]
[1742022489131,0.25542878,84088.0,84087.0,0.48292956]
[1742022489625,0.25542878,84088.0,84087.0,0.71292956]
[1742022489833,0.25542878,84088.0,84087.0,0.24292956]
[1742022490624,0.25542878,84088.0,84087.0,0.52292956]
[1742022491223,0.25558899,84088.0,84087.0,0.52292956]
[1742022491530,0.25558899,84088.0,84087.0,0.21082956]
[1742022491718,0.25558899,84088.0,84087.0,0.24412956]
[1742022492629,0.13666839,84088.0,84087.0,0.77412956]
[1742022492933,0.25558899,84088.0,84087.0,0.49412956]
[1742022493132,0.25558899,84088.0,84087.0,0.75412956]
[1742022493428,0.13666839,84088.0,84087.0,0.75412956]
[1742022493634,0.13666839,84088.0,84087.0,0.76412956]
[1742022493941,0.25558899,84088.0,84087.0,0.71412956]
[1742022494121,0.25558899,84088.0,84087.0,0.46412956]
[1742022494322,0.24454286,84088.0,84087.0,0.73412956]
[1742022494631,0.2554696,84088.0,84087.0,0.47412956]
[1742022496230,0.2554696,84088.0,84087.0,0.75412956]
[1742022496439,0.2554696,84088.0,84087.0,0.72412956]
[1742022496730,0.2554696,84088.0,84087.0,0.11082956]
[1742022496936,0.2885696,84088.0,84087.0,0.22082956]
[1742022497237,0.2885696,84088.0,84087.0,0.33082956]
[1742022497429,0.2885696,84088.0,84087.0,0.25132956]
[1742022497827,0.2885696,84088.0,84087.0,0.59132956]
[1742022498029,0.2885696,84088.0,84087.0,0.25132956]
[1742022498732,0.2885696,84088.0,84087.0,0.14132956]
[1742022498936,0.2885696,84088.0,84087.0,0.11082956]
[1742022499132,0.2885696,84088.0,84086.0,0.0594617]
[1742022499321,0.27764286,84088.0,84087.0,0.118922]
[1742022499636,0.28871309,84088.0,84087.0,0.928922]
[1742022499821,0.28871309,84088.0,84087.0,0.118922]
[1742022500026,0.28871309,84088.0,84087.0,0.388922]
[1742022500429,0.28871309,84088.0,84087.0,0.118922]
[1742022500622,0.1783844,84087.0,84086.0,0.118923]
[1742022500828,0.18945463,84087.0,84086.0,0.118923]
[1742022501027,0.1189234,84086.0,84084.0,0.1189254]
[1742022501236,0.12999439,84085.0,84084.0,0.6689249]
[1742022501421,0.19099439,84085.0,84084.0,0.6809424]
[1742022502037,0.19471139,84085.0,84084.0,1.0620175]
[1742022502335,0.19471139,84085.0,84084.0,0.9109438]
[1742022502534,0.19471139,84085.0,84084.0,0.6809438]
[1742022502737,0.19471139,84085.0,84084.0,0.3889263]
[1742022502933,0.19671139,84085.0,84084.0,0.27]
[1742022503836,0.19671139,84085.0,84084.0,0.6389263]
[1742022504034,0.19671139,84085.0,84084.0,0.6689263]
[1742022504223,0.19671139,84085.0,84084.0,0.3889263]
[1742022505329,0.19671139,84085.0,84084.0,0.6289263]
[1742022505530,0.19671139,84085.0,84084.0,0.3889263]
[1742022505731,0.19671139,84085.0,84084.0,0.6389263]
[1742022506338,0.19671139,84085.0,84084.0,0.9089263]
[1742022506533,0.19671139,84085.0,84084.0,0.6089263]
[1742022506941,0.25451665,84085.0,84084.0,0.3889263]
[1742022507141,0.25451665,84085.0,84084.0,0.6289263]
[1742022507334,0.25451665,84085.0,84084.0,1.1289263]
[1742022507533,0.25451665,84085.0,84084.0,0.6789263]
[1742022508841,0.25435531,84085.0,84084.0,0.27]
[1742022509037,0.25435531,84085.0,84084.0,0.51]
[1742022509255,0.25435531,84085.0,84084.0,0.27]
[1742022509736,0.25435531,84085.0,84084.0,0.37]
[1742022509944,0.25435531,84085.0,84084.0,0.27]
[1742022511431,0.25435531,84085.0,84084.0,0.53]
[1742022511746,0.25435531,84085.0,84084.0,0.27]
[1742022514943,0.25435531,84085.0,84084.0,0.55]
[1742022515138,0.25435531,84085.0,84084.0,0.27]
[1742022515939,0.25435531,84085.0,84084.0,0.55]
[1742022516140,0.25435531,84085.0,84084.0,0.27]
[1742022516741,0.25435531,84085.0,84084.0,0.53]
[1742022516945,0.25435531,84085.0,84084.0,0.27]
[1742022521451,0.1784141,84073.0,84072.0,0.1189429]
[1742022521746,0.55012235,84073.0,84072.0,1.1108429]
[1742022521952,0.55383935,84073.0,84072.0,1.1108429]
[1742022522354,0.55383935,84073.0,84072.0,1.1008429]
[1742022522853,0.58613935,84073.0,84072.0,1.1653429]
[1742022523553,0.55483935,84073.0,84072.0,1.18012634]
[1742022523741,0.58613935,84073.0,84072.0,1.18012634]
[1742022524453,0.58513935,84073.0,84072.0,1.18012634]
[1742022524955,0.64294461,84073.0,84072.0,1.18012634]
[1742022526244,0.64294461,84073.0,84072.0,1.20012634]
[1742022528058,0.63203636,84073.0,84072.0,1.20012634]
[1742022528554,0.63203636,84073.0,84072.0,1.21012634]
[1742022530051,0.60073636,84073.0,84072.0,1.21012634]
[1742022530355,0.60073636,84073.0,84072.0,1.16012634]
[1742022531259,0.64279882,84073.0,84072.0,1.16012634]
[1742022532151,0.63193636,84073.0,84072.0,1.16012634]
[1742022532447,0.63193636,84073.0,84072.0,1.20012634]
[1742022532844,0.63193636,84073.0,84072.0,1.06012634]
[1742022533047,0.64282261,84073.0,84072.0,1.06012634]
[1742022533865,0.64282261,84073.0,84072.0,1.18012634]
[1742022534549,0.64282261,84073.0,84072.0,0.95012634]
[1742022534755,0.64282261,84073.0,84072.0,1.19012634]
[1742022535154,0.28202261,84073.0,84072.0,1.19012634]
[1742022536054,0.28202261,84073.0,84072.0,1.22012634]
[1742022539271,0.28202261,84073.0,84072.0,1.21012634]
[1742022539561,0.27113636,84073.0,84072.0,1.21012634]
[1742022539761,0.28206087,84073.0,84072.0,1.21012634]
[1742022540366,0.27113636,84073.0,84072.0,1.21012634]
[1742022540665,0.28204843,84073.0,84072.0,1.23012634]
[1742022540967,0.28204971,84073.0,84072.0,1.23012634]
[1742022541164,0.27113636,84073.0,84072.0,1.23012634]
[1742022541468,0.28202615,84073.0,84072.0,1.20012634]
[1742022543564,0.28202615,84073.0,84072.0,0.93012634]
[1742022544271,0.28202615,84073.0,84072.0,1.07012634]
[1742022544569,0.0594788,84062.0,84050.0,0.33287536]
[1742022544763,0.3608,84054.0,84053.0,0.1784454]
[1742022544967,0.3608,84054.0,84053.0,0.9284454]
[1742022544968,0.01088979,84054.0,84053.0,0.9284454]
[1742022545166,0.3608,84064.0,84063.0,0.118956]
[1742022545366,0.3608,84064.0,84063.0,0.898956]
[1742022545568,0.4797546,84064.0,84063.0,0.898956]
[1742022545868,0.48347226,84064.0,84063.0,0.898956]
[1742022546068,0.118956,84063.0,84062.0,0.2371567]
[1742022546372,0.15447366,84063.0,84062.0,0.7489574]
[1742022546561,0.15447366,84063.0,84062.0,0.8142574]
[1742022548374,0.03551766,84063.0,84062.0,0.8142574]
[1742022548775,0.15447366,84063.0,84062.0,0.8142574]
[1742022549074,0.03551766,84063.0,84062.0,0.8142574]
[1742022549275,0.15447366,84063.0,84062.0,0.8142574]
[1742022549664,0.15447366,84063.0,84062.0,0.8162574]
[1742022550675,0.4250599,84063.0,84062.0,0.8162574]
[1742022551668,0.42134224,84063.0,84062.0,0.8162574]
[1742022552371,0.30238624,84063.0,84062.0,0.8162574]
[1742022552570,0.42134224,84063.0,84062.0,0.8162574]
[1742022552768,0.30238624,84063.0,84062.0,0.8162574]
[1742022553177,0.42134224,84063.0,84062.0,0.8162574]
[1742022553371,0.30238624,84063.0,84062.0,0.8162574]
[1742022554268,0.08960526,84063.0,84062.0,0.8162574]
[1742022555181,0.08960526,84063.0,84062.0,0.9347374]
[1742022555678,0.21295941,84072.0,84071.0,0.1189447]
[1742022555877,0.21295941,84072.0,84071.0,0.8489447]
[1742022556177,0.21295941,84072.0,84071.0,0.9974247]
[1742022557085,0.21395941,84072.0,84071.0,0.9974247]
[1742022557273,0.21395941,84072.0,84071.0,0.9674247]
[1742022557582,0.20176344,84083.0,84082.0,0.1189291]
[1742022557782,0.33077143,84091.0,84088.0,0.1189206]
[1742022558083,0.21026832,84091.0,84090.0,0.1189178]
[1742022558277,0.0305,84095.0,84094.0,0.1189121]
[1742022558576,0.0305,84095.0,84094.0,0.9974721]
[1742022559679,0.0305,84095.0,84094.0,1.01215145]
[1742022559873,0.00017843,84103.0,84100.0,0.0594518]
[1742022560183,0.00017843,84103.0,84100.0,0.8194518]
[1742022560385,0.00017843,84103.0,84102.0,0.1189008]
[1742022560585,0.00017843,84103.0,84102.0,0.9189008]
[1742022561275,0.00117843,84103.0,84102.0,0.9189008]
[1742022561680,0.00317843,84103.0,84102.0,0.9189008]
[1742022562085,0.00417843,84103.0,84102.0,0.9189008]
[1742022562380,0.00417843,84103.0,84102.0,0.1189008]
[1742022562582,0.12307783,84103.0,84102.0,0.2377008]
[1742022562783,0.15487783,84103.0,84102.0,0.2377008]
[1742022563087,0.15487783,84103.0,84102.0,0.5989008]
[1742022563382,0.15487783,84103.0,84102.0,0.2376608]
[1742022563584,0.10197843,84103.0,84102.0,0.6176608]
[1742022563781,0.10197843,84103.0,84102.0,0.8676608]
[1742022565189,0.22087783,84103.0,84102.0,0.8676608]
[1742022567194,0.10197843,84103.0,84102.0,0.8676608]
[1742022567879,0.07017843,84103.0,84102.0,0.8676608]
[1742022570087,0.07017843,84103.0,84102.0,0.6076608]
[1742022570290,0.07017843,84103.0,84102.0,0.8876608]
[1742022571785,0.07017843,84103.0,84102.0,0.6073408]
[1742022572291,0.07017843,84103.0,84102.0,0.3273408]
[1742022574695,0.07017843,84103.0,84102.0,0.4789008]
[1742022574994,0.07017843,84103.0,84102.0,0.3273408]
[1742022575195,0.07017843,84103.0,84102.0,0.5973408]
[1742022576391,0.07017843,84103.0,84102.0,0.8572608]
[1742022576596,0.07017843,84103.0,84102.0,0.9071608]
[1742022577894,0.3608,84106.0,84105.0,0.1188966]
[1742022578086,0.3608,84128.0,84121.0,0.118874]
[1742022578287,0.391,84138.0,84130.0,0.1188612]
[1742022578498,0.53782988,84131.0,84130.0,0.4773412]
[1742022578887,0.3608,84131.0,84130.0,0.4773412]
[1742022579297,0.1188584,84133.0,84132.0,0.1188584]
[1742022579494,0.1782826,84135.0,84134.0,0.1188556]
[1742022579694,0.0894271,84135.0,84134.0,0.1188556]
[1742022580686,0.0944271,84135.0,84134.0,0.1188556]
[1742022581187,0.1588271,84135.0,84134.0,0.1188556]
[1742022581592,0.1638271,84135.0,84134.0,0.1198556]
[1742022582993,0.1638271,84135.0,84134.0,0.001]
[1742022583798,0.5246271,84135.0,84134.0,0.001]
[1742022583999,0.5246271,84135.0,84134.0,0.1198556]
[1742022584505,0.5246271,84135.0,84134.0,0.001]
[1742022585108,0.5246271,84135.0,84134.0,0.1198556]
[1742022585409,0.5246271,84135.0,84134.0,0.001]
[1742022587111,0.5387998,84135.0,84134.0,0.001]
[1742022587407,0.5246271,84135.0,84134.0,0.001]
[1742022588608,0.1188711,84124.0,84123.0,0.1188703]
[1742022588810,0.1188711,84124.0,84123.0,0.3788703]
[1742022589008,0.2163711,84124.0,84123.0,0.3788703]
[1742022589713,0.2163711,84124.0,84123.0,0.1188703]
[1742022589902,0.2193711,84124.0,84123.0,0.1188703]
[1742022590099,0.1188711,84123.0,84122.0,0.00017831]
[1742022590508,0.1489711,84123.0,84122.0,0.00017831]
[1742022590707,0.1816711,84123.0,84122.0,0.00017831]
[1742022591413,0.1846711,84123.0,84122.0,0.00017831]
[1742022591800,0.1876711,84123.0,84122.0,0.00017831]
[1742022594912,0.1876711,84123.0,84122.0,0.37905081]
[1742022595109,0.1876711,84123.0,84122.0,0.11905081]
[1742022596520,0.1876711,84123.0,84122.0,0.15015081]
[1742022597821,0.1188881,84113.0,84112.0,0.237762]
[1742022598011,0.1188881,84113.0,84112.0,0.3566406]
[1742022598619,0.1188881,84113.0,84112.0,0.3881406]
[1742022598818,0.1502881,84113.0,84112.0,0.3881406]
[1742022599622,0.0314,84113.0,84105.0,0.1188965]
[1742022599924,0.1188966,84105.0,84104.0,0.23796941]
[1742022600224,0.1188966,84105.0,84104.0,0.51796941]
[1742022600924,0.1823966,84105.0,84104.0,0.39907361]
[1742022601121,0.5431966,84105.0,84104.0,0.00117831]
[1742022601624,0.1189121,84095.0,84094.0,0.1189108]
[1742022601823,0.4797121,84095.0,84094.0,0.1491108]
[1742022602119,0.5408121,84095.0,84094.0,0.1491108]
[1742022603512,0.5408121,84095.0,84094.0,0.0302]
[1742022603719,0.1159121,84094.0,84093.0,0.21390256]
[1742022603917,0.1468121,84094.0,84093.0,0.21390256]
[1742022604122,0.2079121,84094.0,84093.0,0.21390256]
[1742022604512,0.2069121,84094.0,84093.0,0.21390256]
[1742022604716,0.1189206,84088.0,84087.0,0.28428758]
[1742022604917,0.4797206,84088.0,84087.0,0.28428758]
[1742022605114,0.1189376,84076.0,84075.0,0.1811386]
[1742022605321,0.1179376,84076.0,84075.0,0.181139]
[1742022605526,0.1179376,84076.0,84075.0,0.471139]
[1742022606932,0.3608,84080.0,84076.0,0.0594688]
[1742022607120,0.3608,84080.0,84079.0,0.1189333]
[1742022607430,0.4797319,84080.0,84079.0,0.3889333]
[1742022608220,0.5127319,84080.0,84079.0,0.3889333]
[1742022609533,0.1519319,84080.0,84079.0,0.3889333]
[1742022611325,0.1519319,84080.0,84079.0,0.3689333]
[1742022612125,0.1519319,84080.0,84079.0,0.25]
[1742022612720,0.1519319,84080.0,84079.0,0.3689333]
[1742022614130,0.1189319,84080.0,84079.0,0.3689333]
[1742022616530,0.1189319,84080.0,84079.0,0.4327333]
[1742022619137,0.1508319,84080.0,84079.0,0.4327333]
[1742022619532,0.1508319,84080.0,84079.0,0.1827333]
[1742022620045,0.1819319,84080.0,84079.0,0.1827333]
[1742022621430,0.1819319,84080.0,84079.0,0.0638]
[1742022621626,0.5427319,84080.0,84079.0,1e-08]
[1742022621847,0.1189376,84076.0,84075.0,0.0322]
[1742022622042,0.0594723,84071.0,84069.0,0.2378929]
[1742022622226,0.1189461,84070.0,84069.0,0.3889468]
[1742022622432,0.1816461,84070.0,84069.0,0.3889468]
[1742022623442,0.1826461,84070.0,84069.0,0.3889468]
[1742022623838,0.1836461,84070.0,84069.0,0.3889468]
[1742022624031,0.0336,84070.0,84069.0,0.3889468]
[1742022624236,0.0336,84070.0,84069.0,1.2497468]
[1742022624537,0.002,84070.0,84069.0,1.2497468]
[1742022632646,0.002,84070.0,84069.0,0.9797468]
[1742022632949,0.0335,84070.0,84069.0,1.2197468]
[1742022633246,0.0335,84070.0,84069.0,0.8589468]
[1742022633849,0.002,84070.0,84069.0,0.8589468]
[1742022635455,0.0337,84070.0,84069.0,0.8589468]
[1742022635649,0.17508509,84070.0,84069.0,0.8589468]
[1742022638158,0.17508509,84070.0,84069.0,0.9757868]
[1742022639653,0.0594652,84081.0,84079.0,0.1189333]
[1742022639853,0.0323,84081.0,84079.0,0.3889333]
[1742022640152,0.24291574,84080.0,84079.0,0.4833333]
[1742022640756,0.00017831,84084.0,84083.0,0.1189277]
[1742022641049,0.11910461,84084.0,84083.0,0.3989277]
[1742022641243,0.11910461,84084.0,84083.0,0.1189277]
[1742022641443,0.11910461,84084.0,84083.0,0.1506277]
[1742022641643,0.11910461,84084.0,84083.0,0.1647402]
[1742022641840,0.11910461,84084.0,84083.0,0.1506277]
[1742022642055,0.15140461,84084.0,84083.0,0.1506277]
[1742022642951,0.15140461,84084.0,84083.0,0.001]
[1742022644155,0.18410461,84084.0,84083.0,0.001]
[1742022645952,0.18410461,84084.0,84083.0,0.1199277]
[1742022646459,0.18410461,84084.0,84083.0,0.001]
[1742022647558,0.18410461,84084.0,84083.0,0.1199277]
[1742022649352,0.18410461,84084.0,84083.0,0.001]
[1742022650257,0.54490461,84084.0,84083.0,0.001]
[1742022651553,0.1189404,84074.0,84073.0,0.04433798]
[1742022651860,0.4797404,84074.0,84073.0,0.39277978]
[1742022652049,0.4797404,84074.0,84073.0,0.3789418]
[1742022652859,0.4797404,84074.0,84067.0,0.0318]
[1742022652860,0.1189531,84065.0,84064.0,0.12795792]
[1742022653049,0.1179531,84065.0,84064.0,0.4191541]
[1742022653445,0.1189574,84062.0,84061.0,0.1520582]
[1742022653649,0.1189574,84062.0,84061.0,0.3991582]
[1742022654253,0.1297946,84062.0,84061.0,0.4320582]
[1742022654457,0.13351274,84062.0,84061.0,0.4320582]
[1742022654653,0.16471274,84062.0,84061.0,0.4320582]
[1742022655250,0.16483776,84062.0,84061.0,0.4320582]
[1742022655444,0.16583776,84062.0,84061.0,0.4320582]
[1742022656060,0.16483776,84062.0,84061.0,0.4320582]
[1742022656558,0.16483776,84062.0,84061.0,0.9220582]
[1742022656747,0.16483776,84062.0,84061.0,0.4320582]
[1742022656949,0.16483776,84062.0,84061.0,0.4018582]
[1742022657345,0.16483776,84062.0,84061.0,0.3689582]
[1742022657549,0.1189616,84059.0,84058.0,0.3608]
[1742022657754,0.13364196,84059.0,84058.0,0.6308]
[1742022658263,0.13364196,84059.0,84058.0,0.749763]
[1742022658648,0.13364196,84059.0,84058.0,0.6308]
[1742022658857,0.1189687,84054.0,84053.0,0.0311]
[1742022659163,0.1189687,84054.0,84053.0,0.66401406]
[1742022659374,0.1189687,84054.0,84053.0,0.69481406]
[1742022659750,0.1831687,84054.0,84053.0,0.69481406]
[1742022660251,0.18688684,84054.0,84053.0,0.69481406]
[1742022662050,0.18688684,84054.0,84053.0,0.96481406]
[1742022665462,0.0642,84054.0,84053.0,0.96481406]
[1742022665657,0.0594836,84056.0,84055.0,0.1189673]
[1742022665859,0.0319,84056.0,84055.0,0.3589673]
[1742022666261,0.0319,84056.0,84055.0,0.9189673]
[1742022668561,0.3608,84058.0,84057.0,0.1189645]
[1742022668765,0.3608,84058.0,84057.0,0.3689645]
[1742022668954,0.3608,84058.0,84057.0,0.6089645]
[1742022669266,0.3608,84058.0,84057.0,0.6705645]
[1742022671969,0.479763,84058.0,84057.0,0.7105645]
[1742022673463,0.184863,84058.0,84057.0,0.7105645]
[1742022673865,0.151963,84058.0,84057.0,0.7105645]
[1742022675157,0.183663,84058.0,84057.0,0.7105645]
[1742022681172,0.183663,84058.0,84057.0,0.4305645]
[1742022682066,0.183663,84058.0,84057.0,0.1805645]
[1742022682267,0.183663,84058.0,84057.0,0.0616]
[1742022682466,0.183663,84058.0,84057.0,0.0311]
[1742022682673,0.183663,84058.0,84057.0,0.1500645]
[1742022682869,0.18738134,84058.0,84057.0,0.1500645]
[1742022683876,0.36418665,84058.0,84057.0,0.1500645]
[1742022685171,0.36418665,84058.0,84057.0,0.1817645]
[1742022686780,0.36046831,84058.0,84057.0,0.1817645]
[1742022687083,0.183663,84058.0,84057.0,0.1817645]
[1742022687282,0.183663,84058.0,84057.0,0.4617645]
[1742022687687,0.183663,84058.0,84057.0,0.7217645]
[1742022687983,0.0647,84058.0,84057.0,0.7217645]
[1742022688280,0.183663,84058.0,84057.0,0.7217645]
[1742022692878,0.183663,84058.0,84057.0,0.4617645]
[1742022693082,0.183663,84058.0,84057.0,0.2611]
[1742022693383,0.544463,84058.0,84057.0,0.3489645]
[1742022694687,0.544463,84058.0,84057.0,0.3806645]
[1742022696893,0.544463,84058.0,84057.0,0.4124645]
[1742022697583,0.544463,84058.0,84057.0,0.3806645]
[1742022699180,0.544463,84058.0,84057.0,0.4110645]
[1742022699585,0.151963,84058.0,84057.0,0.4110645]
[1742022699784,0.183263,84058.0,84057.0,0.4110645]
[1742022703687,0.033,84058.0,84057.0,0.4110645]
[1742022703886,0.21284454,84061.0,84060.0,0.1189602]
[1742022704088,0.39128624,84061.0,84060.0,0.3589602]
[1742022704283,0.39128624,84061.0,84060.0,0.4199602]
[1742022704488,0.1784417,84061.0,84060.0,0.4199602]
[1742022705188,0.1784417,84061.0,84060.0,0.4507602]
[1742022705585,0.2096417,84061.0,84060.0,0.4507602]
[1742022707989,0.2415417,84061.0,84060.0,0.4507602]
[1742022708188,0.0631,84061.0,84060.0,0.7107602]
[1742022708384,0.0631,84061.0,84060.0,0.4507602]
[1742022709595,0.1820588,84061.0,84060.0,0.4507602]
[1742022712591,0.0631,84061.0,84060.0,0.4507602]
[1742022713101,0.21286182,84062.0,84061.0,0.1189588]
[1742022713391,0.21286182,84062.0,84061.0,0.3892588]
[1742022713591,0.33181922,84062.0,84061.0,0.4202588]
[1742022714484,0.36481922,84062.0,84061.0,0.4202588]
[1742022714689,0.36481922,84062.0,84061.0,0.1802588]
[1742022714889,0.1519574,84062.0,84061.0,0.4302588]
[1742022715394,0.1824574,84062.0,84061.0,0.4302588]
[1742022716692,0.2146574,84062.0,84061.0,0.4302588]
[1742022716892,0.5754574,84062.0,84061.0,0.4302588]
[1742022717287,0.5432574,84062.0,84061.0,0.4302588]
[1742022717594,0.1824574,84062.0,84061.0,0.4302588]
[1742022717898,0.5432574,84062.0,84061.0,0.4302588]
[1742022718598,0.1824574,84062.0,84061.0,0.4302588]
[1742022719691,0.1824574,84062.0,84061.0,0.4183588]
[1742022726005,0.2153574,84062.0,84061.0,0.4183588]
[1742022726607,0.1824574,84062.0,84061.0,0.4183588]
[1742022727808,0.1824574,84062.0,84061.0,0.1683588]
[1742022728006,0.1189645,84057.0,84056.0,0.2353659]
[1742022728299,0.1189645,84057.0,84056.0,0.3489659]
[1742022729508,0.1817645,84057.0,84056.0,0.3489659]
[1742022730011,0.1817645,84057.0,84056.0,0.4100659]
[1742022730504,0.5425645,84057.0,84056.0,0.0611]
[1742022731001,0.5425645,84057.0,84056.0,0.3111]
[1742022731401,0.5425645,84057.0,84056.0,0.2808]
[1742022731602,0.5425645,84057.0,84056.0,0.3997659]
[1742022733208,0.5425645,84057.0,84056.0,0.4319659]
[1742022734009,0.1189814,84047.0,84046.0,0.1784686]
[1742022734212,0.1189814,84047.0,84046.0,0.79186338]
[1742022734613,0.1189814,84047.0,84046.0,0.82406338]
[1742022734909,0.1491814,84047.0,84046.0,0.82406338]
[1742022735311,0.1817814,84047.0,84046.0,0.85436338]
[1742022735507,0.1827814,84047.0,84046.0,0.85436338]
[1742022736212,0.1837814,84047.0,84046.0,0.85436338]
[1742022737113,0.002,84047.0,84046.0,0.85436338]
[1742022737304,0.002,84047.0,84046.0,1.09436338]
[1742022741403,0.002,84047.0,84046.0,1.21072338]
[1742022745615,0.002,84047.0,84046.0,1.09436338]
[1742022745811,0.002,84047.0,84046.0,1.21064338]
[1742022751014,0.17727362,84055.0,84054.0,0.1189687]
[1742022751208,0.17727362,84055.0,84054.0,0.9089687]
[1742022751411,0.17727362,84055.0,84054.0,0.9727687]
[1742022752421,0.17727362,84055.0,84054.0,1.0053687]
[1742022753011,0.17727362,84055.0,84054.0,0.7353687]
[1742022753216,0.21286182,84063.0,84062.0,0.1189574]
[1742022753419,0.21286182,84063.0,84062.0,1.0032574]
[1742022753620,0.0633,84066.0,84065.0,0.1189531]
[1742022753818,0.0633,84066.0,84065.0,0.5889531]
[1742022754015,0.0633,84066.0,84065.0,0.6514531]
[1742022754216,0.21304024,84067.0,84066.0,0.1189517]
[1742022754436,0.12866059,84071.0,84070.0,0.1189461]
[1742022754615,0.12866059,84071.0,84070.0,1.0149861]
[1742022755223,0.0633,84080.0,84079.0,0.1189333]
[1742022755419,0.0633,84080.0,84079.0,0.3489333]
[1742022755813,0.0633,84080.0,84079.0,0.4649733]
[1742022756014,0.0633,84080.0,84079.0,0.5774733]
[1742022757321,0.0633,84080.0,84079.0,0.2974733]
[1742022757519,0.1822319,84080.0,84079.0,0.2974733]
[1742022758114,0.1862319,84080.0,84079.0,0.2974733]
[1742022758423,0.1892319,84080.0,84079.0,0.2974733]
[1742022759922,0.0703,84080.0,84079.0,0.2974733]
[1742022760123,0.1892319,84080.0,84079.0,0.2974733]
[1742022760921,0.1784141,84074.0,84073.0,0.1189385]